bitfinex/quotes_SOLUSD_20250718
["timestamp","ask_amount","ask_price","bid_price","bid_amount"]
[1752845767802,31.72,181.69,181.66,16.73189229]
[1752845768115,0.7,181.73,181.63,0.51]
[1752845768321,31.72,181.73,181.71,16.73189229]
[1752845768519,0.7,181.72,181.69,16.73189229]
[1752845768721,0.7,181.72,181.64,0.51]
[1752845768925,36.52268101,181.73,181.59,0.58069111]
[1752845768926,0.7,181.71,181.7,16.73189229]
[1752845769103,0.7,181.71,181.69,16.73189229]
[1752845769307,0.7,181.7,181.65,5.50509221]
[1752845769501,0.7,181.73,181.62,5.50600154]
[1752845769704,0.7,181.73,181.72,16.73189229]
[1752845769907,0.7,181.73,181.7,16.73189229]
[1752845770104,0.7,181.72,181.71,16.73189229]
[1752845770305,30.96,181.73,181.71,16.73189229]
[1752845770613,56.96,181.75,181.72,16.73189229]
[1752845770810,57.66,181.75,181.73,16.73189229]
[1752845771314,0.7,181.75,181.74,16.73189229]
[1752845771519,0.7,181.78,181.74,16.73189229]
[1752845771701,0.7,181.78,181.68,5.50390962]
[1752845771702,36.44115524,181.78,181.76,16.73189229]
[1752845771904,0.7,181.77,181.76,16.73189229]
[1752845772100,0.7,181.77,181.68,5.50390962]
[1752845772323,0.7,181.77,181.75,16.73189229]
[1752845772531,0.7,181.77,181.76,16.73189229]
[1752845772705,36.44115524,181.78,181.76,16.73189229]
[1752845773101,31.64,181.78,181.73,5.50242475]
[1752845773331,31.64,181.78,181.77,16.73189229]
[1752845773628,30.94,181.78,181.77,16.73189229]
[1752845773932,31.58,181.82,181.77,16.73189229]
[1752845774133,31.58,181.82,181.74,0.51]
[1752845774134,30.88,181.82,181.81,16.73189229]
[1752845774924,37.079945,181.82,181.81,16.73189229]
[1752845775237,31.58,181.82,181.81,16.73189229]
[1752845775531,37.079945,181.82,181.74,6.01232768]
[1752845775710,37.079945,181.82,181.79,16.73189229]
[1752845775907,0.7,181.81,181.79,16.73189229]
[1752845776116,36.379945,181.82,181.79,16.73189229]
[1752845776412,0.7,181.8,181.73,5.50262086]
[1752845776624,0.7,181.8,181.77,16.73189229]
[1752845776824,0.7,181.79,181.72,5.50293152]
[1752845777033,47.55189229,181.78,181.73,16.73189229]
[1752845777223,0.7,181.77,181.74,16.73189229]
[1752845777454,0.7,181.81,181.76,16.73189229]
[1752845777744,0.7,181.81,181.67,19.26545401]
[1752845777745,0.06,181.78,181.7,0.51]
[1752845777952,0.7,181.77,181.67,6.01423862]
[1752845778160,0.7,181.77,181.72,16.73189229]
[1752845778325,16.78468397,181.76,181.65,5.5048047]
[1752845778526,0.7,181.75,181.7,16.73189229]
[1752845778822,5.50266879,181.73,181.7,16.73189229]
[1752845779023,0.7,181.72,181.63,1.5486]
[1752845779226,26.0,181.68,181.65,16.73189229]
[1752845779445,0.7,181.67,181.61,6.3756]
[1752845779645,0.7,181.67,181.64,16.73189229]
[1752845779860,56.78,181.68,181.65,16.73189229]
[1752845780150,26.0,181.68,181.66,16.73189229]
[1752845780341,30.76,181.69,181.67,16.73189229]
[1752845780550,30.76,181.69,181.68,16.73189229]
[1752845780920,30.76,181.71,181.68,16.73189229]
[1752845781151,31.44,181.73,181.7,16.73189229]
[1752845781453,26.0,181.74,181.72,16.73189229]
[1752845781757,26.0,181.74,181.7,16.73189229]
[1752845781758,0.7,181.73,181.7,16.73189229]
[1752845781935,0.7,181.73,181.65,0.51]
[1752845782133,36.24211862,181.75,181.72,16.73189229]
[1752845782322,30.74,181.75,181.67,0.51]
[1752845782542,0.7,181.74,181.72,16.73189229]
[1752845782746,0.7,181.77,181.73,16.73189229]
[1752845783049,0.06,181.78,181.76,16.73189229]
[1752845783255,0.76,181.78,181.76,16.73189229]
[1752845783759,0.71,181.77,181.7,6.01357732]
[1752845783929,0.71,181.77,181.76,16.73189229]
[1752845784246,0.71,181.77,181.75,16.73189229]
[1752845784454,0.71,181.77,181.7,5.50357732]
[1752845784455,0.06,181.78,181.76,16.73189229]
[1752845784627,0.06,181.78,181.77,16.73189229]
[1752845786169,0.77,181.78,181.69,6.0985]
[1752845786331,0.06,181.78,181.77,16.73189229]
[1752845786958,0.06,181.78,181.77,22.23335017]
[1752845787331,0.06,181.78,181.77,22.74335017]
[1752845787835,0.06,181.82,181.77,36.49699488]
[1752845788033,0.06,181.82,181.81,16.73189229]
[1752845788330,0.06,181.82,181.81,23.21799229]
[1752845788528,0.06,181.82,181.81,23.72799229]
[1752845788840,1e-08,181.82,181.81,29.2282398]
[1752845789954,1e-08,181.82,181.81,28.7182398]
[1752845791070,1e-08,181.82,181.81,16.73189229]
[1752845795071,1e-08,181.82,181.81,22.7421398]
[1752845796158,1e-08,181.82,181.81,22.2321398]
[1752845796752,1e-08,181.82,181.81,16.73189229]
[1752845797161,1e-08,181.82,181.81,22.2321398]
[1752845797361,1e-08,181.82,181.81,22.7421398]
[1752845798160,1e-08,181.82,181.79,5.50085263]
[1752845798450,1e-08,181.82,181.81,16.73189229]
[1752845799459,1e-08,181.82,181.73,1.5176]
[1752845799460,17.4418923,181.82,181.73,1.5176]
[1752845799665,0.71,181.81,181.77,16.73189229]
[1752845799861,1e-08,181.82,181.78,16.73189229]
[1752845799862,0.71,181.8,181.78,16.73189229]
[1752845800059,0.71,181.8,181.79,16.73189229]
[1752845800260,0.71,181.8,181.72,5.5029716]
[1752845800467,0.71,181.8,181.76,16.73189229]
[1752845800689,0.71,181.79,181.77,16.73189229]
[1752845801067,0.71,181.79,181.76,16.73189229]
[1752845801268,0.71,181.79,181.77,16.73189229]
[1752845802083,36.84997948,181.82,181.78,16.73189229]
[1752845802287,0.71,181.81,181.78,16.73189229]
[1752845802581,0.71,181.8,181.78,16.73189229]
[1752845803468,0.71,181.79,181.72,5.5029716]
[1752845803895,0.71,181.79,181.77,16.73189229]
[1752845804773,0.71,181.78,181.72,5.5029716]
[1752845805286,0.71,181.78,181.75,11.09629976]
[1752845805466,30.54,181.8,181.72,5.5029716]
[1752845805667,1e-08,181.82,181.79,11.09629976]
[1752845805864,1e-08,181.82,181.81,11.09629976]
[1752845806280,1e-08,181.82,181.77,0.51]
[1752845806484,0.71000001,181.82,181.73,0.51]
[1752845806669,11.80629977,181.82,181.77,11.09629976]
[1752845806872,0.71,181.81,181.78,11.09629976]
[1752845807188,1e-08,181.82,181.78,11.09629976]
[1752845807189,0.71,181.8,181.78,11.09629976]
[1752845807361,1e-08,181.82,181.78,11.09629976]
[1752845807567,1e-08,181.82,181.8,11.09629976]
[1752845807788,1e-08,181.82,181.77,5.50142035]
[1752845808282,0.71000001,181.82,181.8,11.09629976]
[1752845808587,1e-08,181.82,181.81,11.09629976]
[1752845808972,0.71000001,181.82,181.81,11.09629976]
[1752845809193,1e-08,181.82,181.81,11.09629976]
[1752845809768,1e-08,181.82,181.77,5.50140675]
[1752845809982,1e-08,181.82,181.76,5.50168249]
[1752845810283,0.71,181.81,181.78,11.09629976]
[1752845810481,1e-08,181.82,181.77,11.09629976]
[1752845810482,0.71,181.8,181.77,11.09629976]
[1752845810689,0.71,181.8,181.78,11.09629976]
[1752845811191,1e-08,181.82,181.78,11.09629976]
[1752845811490,1e-08,181.82,181.71,6.6056]
[1752845811491,1e-08,181.82,181.81,11.09629976]
[1752845811988,0.71000001,181.82,181.81,11.09629976]
[1752845812174,1e-08,181.82,181.81,11.09629976]
[1752845812776,1e-08,181.82,181.77,6.01145788]
[1752845813278,1e-08,181.82,181.81,11.09629976]
[1752845813800,1e-08,181.82,181.81,16.59654727]
[1752845815295,1e-08,181.82,181.76,5.50176056]
[1752845815594,1e-08,181.82,181.81,11.09629976]
[1752845815994,0.72000001,181.82,181.81,11.09629976]
[1752845817016,0.72000001,181.82,181.72,0.55029716]
[1752845817180,31.08000001,181.82,181.77,11.09629976]
[1752845817375,0.72,181.81,181.78,11.09629976]
[1752845817580,0.72,181.8,181.72,19.26040061]
[1752845818078,0.72,181.8,181.79,11.09629976]
[1752845818274,30.34000001,181.82,181.79,11.09629976]
[1752845818499,0.72,181.81,181.78,11.09629976]
[1752845818695,1e-08,181.82,181.8,11.09629976]
[1752845818902,1e-08,181.82,181.81,11.09629976]
[1752845819698,1e-08,181.82,181.79,5.50085263]
[1752845819907,1e-08,181.82,181.81,11.09629976]
[1752845820909,1e-08,181.82,181.81,16.59654727]
[1752845821222,1e-08,181.82,181.81,11.09629976]
[1752845821375,1e-08,181.82,181.81,16.59654727]
[1752845821783,1e-08,181.82,181.81,23.52004727]
[1752845822200,1e-08,181.82,181.81,11.91374751]
[1752845822390,0.72000001,181.82,181.8,11.09629976]
[1752845822594,1e-08,181.82,181.81,11.09629976]
[1752845823003,1e-08,181.82,181.81,17.10654727]
[1752845823396,1e-08,181.82,181.81,16.59654727]
[1752845823993,1e-08,181.82,181.81,17.10654727]
[1752845824902,36.51699803,181.92,181.81,30.85716604]
[1752845825105,0.72,181.91,181.81,6.01024751]
[1752845825302,11.09629976,181.9,181.85,11.09629976]
[1752845825504,0.72,181.89,181.87,11.09629976]
[1752845825692,0.72,181.94,181.88,11.09629976]
[1752845825890,0.72,181.94,181.9,11.09629976]
[1752845826211,0.72,181.93,181.9,11.09629976]
[1752845826516,0.72,181.92,181.9,11.09629976]
[1752845826820,0.72,181.96,181.91,11.09629976]
[1752845827020,5.49597448,181.96,181.92,11.09629976]
[1752845827232,0.72,181.95,181.88,5.49807079]
[1752845827387,11.81629976,181.95,181.9,11.09629976]
[1752845827591,0.72,181.94,181.9,11.09629976]
[1752845827792,0.72,181.93,181.89,11.09629976]
[1752845827990,0.72,181.92,181.89,11.09629976]
[1752845828193,0.72,181.92,181.9,11.09629976]
[1752845828426,19.23525783,181.96,181.84,0.51]
[1752845828649,11.81629976,181.91,181.86,11.09629976]
[1752845828923,5.49813063,181.88,181.81,5.50024751]
[1752845829090,5.49813063,181.88,181.84,11.09629976]
[1752845829292,0.72,181.88,181.84,11.09629976]
[1752845829606,62.45727701,181.91,181.87,11.09629976]
[1752845829932,56.94,181.91,181.89,11.09629976]
[1752845830243,0.72,181.9,181.87,11.09629976]
[1752845830415,0.72,181.89,181.87,11.09629976]
[1752845830616,0.72,181.88,181.85,11.09629976]
[1752845831051,0.72,181.88,181.8,2.0124]
[1752845831345,0.72,181.88,181.86,11.09629976]
[1752845831543,30.22,181.89,181.85,11.09629976]
[1752845831710,30.22,181.89,181.76,14.30431199]
[1752845831711,0.72,181.87,181.82,11.09629976]
[1752845831915,11.09629976,181.86,181.81,11.09629976]
[1752845832142,11.09629976,181.86,181.78,11.82321654]
[1752845832143,0.72,181.85,181.78,11.82321654]
[1752845832326,30.2,181.84,181.81,11.09629976]
[1752845832538,30.2,181.84,181.82,11.09629976]
[1752845832842,0.72,181.83,181.79,11.09629976]
[1752845833016,0.72,181.83,181.8,11.09629976]
[1752845833343,0.72,181.86,181.81,11.09629976]
[1752845833664,30.2,181.84,181.83,11.09629976]
[1752845834138,30.2,181.84,181.78,0.03]
[1752845834346,30.18,181.86,181.83,11.09629976]
[1752845834514,30.18,181.86,181.78,0.03]
[1752845834515,11.81629976,181.85,181.78,0.03]
[1752845834720,11.09629976,181.84,181.79,11.09629976]
[1752845834945,0.72,181.83,181.79,11.09629976]
[1752845835353,0.72,181.82,181.79,11.09629976]
[1752845835521,6.21932686,181.85,181.8,11.09629976]
[1752845835724,0.72,181.84,181.8,11.09629976]
[1752845835924,0.72,181.83,181.81,11.09629976]
[1752845836225,30.16,181.83,181.78,5.53099857]
[1752845836534,30.88,181.83,181.8,11.09629976]
[1752845836965,30.88,181.83,181.78,0.03]
[1752845836966,11.81629976,181.82,181.78,0.03]
[1752845837130,11.09629976,181.79,181.78,0.03]
[1752845837463,58.04098373,181.79,181.78,0.03]
[1752845837670,58.76098373,181.79,181.78,0.03]
[1752845837837,11.81629976,181.79,181.78,0.03]
[1752845838032,56.9,181.79,181.78,0.03]
[1752845838254,67.99629976,181.79,181.78,0.03]
[1752845838460,56.9,181.79,181.78,0.03]
[1752845838662,67.97629976,181.79,181.78,0.03]
[1752845838872,16.78468397,181.78,181.74,0.03]
[1752845839039,37.09629976,181.75,181.74,0.03]
[1752845839240,61.66206327,181.75,181.74,0.03]
[1752845839455,30.16,181.75,181.74,0.03]
[1752845839838,30.88,181.75,181.74,0.03]
[1752845840638,30.16,181.75,181.74,0.03]
[1752845841154,30.16,181.75,181.74,11.12629976]
[1752845841346,30.16,181.75,181.74,0.03]
[1752845842148,0.72,181.82,181.74,0.03]
[1752845842369,41.21629976,181.81,181.76,11.09629976]
[1752845842671,11.81629976,181.8,181.75,11.09629976]
[1752845843169,0.72,181.79,181.76,11.09629976]
[1752845843587,11.81629976,181.87,181.78,11.09629976]
[1752845843746,0.72,181.87,181.84,11.09629976]
[1752845843947,0.72,181.87,181.77,1.09014578]
[1752845843948,0.72,181.87,181.79,0.54]
[1752845844166,30.12,181.86,181.85,11.09629976]
[1752845844986,30.12,181.88,181.85,11.09629976]
[1752845845147,0.06,181.86,181.85,11.09629976]
[1752845845671,0.73,181.86,181.78,6.4692]
[1752845846181,0.73,181.86,181.83,11.09629976]
[1752845846358,0.67,181.85,181.82,11.09629976]
[1752845846676,28.08,181.84,181.83,11.09629976]
[1752845846878,34.24934007,181.84,181.76,1.5142]
[1752845847182,11.09629976,181.82,181.76,11.09629976]
[1752845847362,11.09629976,181.82,181.77,11.09629976]
[1752845847363,0.67,181.81,181.77,11.09629976]
[1752845847565,30.08,181.8,181.77,11.09629976]
[1752845847772,30.08,181.8,181.79,11.09629976]
[1752845848175,30.08,181.83,181.75,0.54]
[1752845848487,30.75,181.83,181.75,0.54]
[1752845848705,5.499945,181.82,181.78,11.09629976]
[1752845848868,5.499945,181.82,181.79,11.09629976]
[1752845849069,6.169945,181.82,181.79,11.09629976]
[1752845849386,30.06,181.83,181.81,11.09629976]
[1752845849691,31.49940194,181.84,181.82,11.09629976]
[1752845849982,0.67,181.83,181.81,11.09629976]
[1752845850160,0.67,181.83,181.8,11.09629976]
[1752845850359,0.73,181.86,181.81,11.09629976]
[1752845850559,0.06,181.86,181.85,11.09629976]
[1752845851062,0.06,181.86,181.85,16.59533742]
[1752845851509,0.06,181.86,181.85,17.13533742]
[1752845851676,0.06,181.92,181.91,11.09629976]
[1752845852158,0.06,181.92,181.91,11.63629976]
[1752845852586,0.06,181.92,181.91,11.09629976]
[1752845853922,0.06,181.92,181.86,6.03866705]
[1752845854090,0.06,181.92,181.91,11.09629976]
[1752845854409,0.06,181.92,181.85,30.08]
[1752845854410,0.06,181.92,181.85,35.57899568]
[1752845854585,0.06,181.92,181.85,36.11899568]
[1752845855006,0.06,181.92,181.9,11.09629976]
[1752845855223,0.73,181.92,181.84,11.58230422]
[1752845855421,0.73,181.92,181.88,11.09629976]
[1752845855591,0.73,181.92,181.84,6.083]
[1752845855592,0.73,181.92,181.89,11.09629976]
[1752845856487,0.06,181.92,181.91,11.09629976]
[1752845857488,0.06,181.92,181.91,11.63629976]
[1752845857706,0.06,181.92,181.91,13.23489976]
[1752845857907,0.1,182.01,181.91,24.33119952]
[1752845858111,5.59427203,182.01,181.98,11.09629976]
[1752845858289,6.26427203,182.01,181.98,11.09629976]
[1752845858492,0.67,182.0,181.97,11.09629976]
[1752845858690,0.67,181.99,181.94,11.09629976]
[1752845858886,6.16536314,181.98,181.94,11.09629976]
[1752845859112,0.67,181.97,181.94,11.09629976]
[1752845859292,0.67,181.96,181.91,11.09629976]
[1752845859493,0.67,181.95,181.91,11.09629976]
[1752845859689,0.67,181.94,181.86,1.5408]
[1752845859901,0.67,181.94,181.89,11.09629976]
[1752845860127,0.67,181.93,181.9,11.09629976]
[1752845860613,36.01782049,181.98,181.9,11.09629976]
[1752845860614,19.23313652,181.98,181.9,11.09629976]
[1752845860816,30.67,181.97,181.93,11.09629976]
[1752845861102,35.49571334,181.96,181.93,11.09629976]
[1752845861425,0.67,181.95,181.92,11.09629976]
[1752845861597,46.6120131,181.96,181.91,11.09629976]
[1752845861798,0.67,181.94,181.89,11.09629976]
[1752845862016,0.67,181.94,181.86,7.03949]
[1752845862225,0.67,181.94,181.9,11.09629976]
[1752845862412,35.51571334,181.96,181.92,11.09629976]
[1752845862725,6.16571334,181.96,181.92,11.09629976]
[1752845862905,35.49613206,181.95,181.93,11.09629976]
[1752845863225,30.0,181.97,181.94,11.09629976]
[1752845863423,35.47510935,181.98,181.9,0.48]
[1752845863614,35.47510935,181.98,181.93,11.09629976]
[1752845863922,0.67,181.97,181.93,11.09629976]
[1752845864225,0.67,181.96,181.93,11.09629976]
[1752845864930,5.49601538,181.95,181.93,11.09629976]
[1752845865309,5.49601538,181.95,181.94,11.09629976]
[1752845866030,5.49601538,181.95,181.93,11.09629976]
[1752845866232,5.49601538,181.95,181.94,11.09629976]
[1752845866405,5.49601538,181.95,181.88,5.49808048]
[1752845866731,5.49601538,181.95,181.93,11.09629976]
[1752845867106,5.49601538,181.95,181.94,11.09629976]
[1752845867305,5.49578943,181.96,181.94,11.09629976]
[1752845867723,6.16578943,181.96,181.94,11.09629976]
[1752845867929,6.16578943,181.96,181.93,11.09629976]
[1752845868138,0.67,181.95,181.93,11.09629976]
[1752845868317,5.49578943,181.96,181.93,11.09629976]
[1752845868636,29.96,181.97,181.95,11.09629976]
[1752845868846,30.63,181.97,181.94,11.09629976]
[1752845869146,36.12544874,181.97,181.94,11.09629976]
[1752845869343,6.22544874,181.97,181.94,11.09629976]
[1752845869636,35.45553196,181.97,181.9,5.49752611]
[1752845869838,36.12553196,181.97,181.94,11.09629976]
[1752845870030,36.12553196,181.97,181.9,5.49752611]
[1752845870031,6.16584675,181.96,181.9,5.49752611]
[1752845870342,6.16584675,181.96,181.94,11.09629976]
[1752845870530,35.45546934,181.97,181.94,11.09629976]
[1752845870737,35.43546934,181.97,181.95,11.09629976]
[1752845871036,0.06,181.97,181.96,11.09629976]
[1752845871343,0.06,181.97,181.91,0.48]
[1752845871344,0.06,181.97,181.95,11.09629976]
[1752845871921,0.06,181.97,181.96,11.09629976]
[1752845872743,0.06,181.97,181.96,0.48]
[1752845872937,0.06,181.97,181.95,6.5923]
[1752845873144,0.06,181.97,181.96,11.09629976]
[1752845874140,0.06,181.97,181.96,17.0720131]
[1752845874941,0.06,181.97,181.96,5.97571334]
[1752845875136,0.06,181.97,181.96,18.5815131]
[1752845875853,0.06,181.97,181.96,11.09629976]
[1752845876140,0.06,181.97,181.95,12.08808781]
[1752845876338,0.06,181.97,181.96,11.57629976]
[1752845877151,0.06,181.97,181.96,11.09629976]
[1752845878019,0.06,181.97,181.96,16.5920131]
[1752845878223,0.06,181.97,181.96,17.0720131]
[1752845878650,0.06,181.97,181.96,16.5920131]
[1752845879334,0.06,181.97,181.96,17.0720131]
[1752845880526,0.06,182.0,181.96,30.81129645]
[1752845880831,0.06,182.05,181.99,11.09629976]
[1752845881030,0.06,182.05,182.04,11.09629976]
[1752845881630,0.06,182.05,182.04,11.57629976]
[1752845882147,0.06,182.05,182.04,11.09629976]
[1752845882344,0.06,182.05,181.97,0.54954113]
[1752845882345,0.75,182.05,181.97,1.5976]
[1752845882556,11.09629976,182.04,181.93,0.48]
[1752845882762,11.78629976,182.03,181.98,11.09629976]
[1752845882957,11.78629976,182.03,181.93,5.97657472]
[1752845882958,0.69,182.02,181.93,5.97657472]
[1752845883249,0.69,182.02,181.98,11.09629976]
[1752845883454,0.69,182.01,181.93,5.97657472]
[1752845883634,11.09629976,182.0,181.95,11.09629976]
[1752845883832,0.69,181.99,181.95,11.09629976]
[1752845884032,0.69,181.98,181.96,11.09629976]
[1752845884239,5.49450549,182.0,181.96,11.09629976]
[1752845884450,0.69,182.01,181.98,11.09629976]
[1752845884746,26.0,182.0,181.93,0.48]
[1752845884948,0.69,182.03,181.99,11.09629976]
[1752845885148,0.69,182.03,182.01,11.09629976]
[1752845885458,5.49355804,182.04,181.96,0.48]
[1752845885641,0.69,182.03,182.0,11.09629976]
[1752845885955,0.69,182.03,181.97,5.49541133]
[1752845886466,5.55302499,182.05,182.02,11.09629976]
[1752845886649,0.69,182.04,182.02,11.09629976]
[1752845886957,0.69,182.04,181.94,5.49631746]
[1752845887158,0.69,182.04,182.0,11.09629976]
[1752845887455,0.69,182.03,182.0,11.09629976]
[1752845887760,0.69,182.02,181.99,11.09629976]
[1752845887962,0.69,182.01,181.99,11.09629976]
[1752845888167,0.69,182.0,181.91,14.22269409]
[1752845888343,0.69,182.0,181.98,11.09629976]
[1752845888544,0.69,182.0,181.99,11.09629976]
[1752845888947,5.49415051,182.02,181.99,11.09629976]
[1752845889167,0.69,182.01,182.0,11.09629976]
[1752845889464,6.18336941,182.04,182.0,11.09629976]
[1752845889642,6.18336941,182.04,182.02,11.09629976]
[1752845889836,0.69,182.03,182.01,11.09629976]
[1752845890649,6.18359995,182.03,181.96,5.49571334]
[1752845890838,0.69,182.02,182.0,11.09629976]
[1752845891047,26.0,181.98,181.92,0.03]
[1752845891273,11.78629976,181.97,181.92,0.03]
[1752845891453,11.09629976,181.96,181.92,0.03]
[1752845891657,11.09629976,181.95,181.92,0.03]
[1752845891867,11.09629976,181.93,181.92,0.03]
[1752845892069,40.95629976,181.93,181.88,0.03]
[1752845892265,26.69,181.94,181.89,11.09629976]
[1752845892266,0.69,181.92,181.89,11.09629976]
[1752845892562,0.69,181.91,181.88,0.03]
[1752845892772,0.69,181.91,181.88,11.12629976]
[1752845892972,0.69,181.9,181.88,0.03]
[1752845893267,26.0,181.93,181.88,0.03]
[1752845893445,0.69,181.92,181.88,0.03]
[1752845893644,0.69,181.92,181.89,11.09629976]
[1752845894148,0.69,181.92,181.88,0.03]
[1752845894149,0.69,181.92,181.9,11.09629976]
[1752845894351,0.69,181.91,181.88,11.12629976]
[1752845894569,0.69,181.91,181.89,11.09629976]
[1752845894773,0.69,181.9,181.88,11.12629976]
[1752845894968,0.69,181.89,181.88,0.03]
[1752845895145,5.4970537,181.92,181.88,11.12629976]
[1752845895352,0.69,181.91,181.9,11.09629976]
[1752845895548,26.0,181.93,181.9,11.09629976]
[1752845895549,0.69,181.92,181.9,11.09629976]
[1752845895761,26.69,181.92,181.9,11.09629976]
[1752845895963,15.35694423,181.99,181.91,11.09629976]
[1752845895964,0.69,181.96,181.91,11.09629976]
[1752845896163,0.69,181.99,181.95,11.09629976]
[1752845896475,30.57,181.99,181.92,0.51]
[1752845896648,30.57,181.99,181.9,6.3245]
[1752845896849,36.06493864,181.99,181.94,11.09629976]
[1752845897154,0.69,181.98,181.94,11.09629976]
[1752845897352,0.69,181.97,181.94,11.09629976]
[1752845897758,0.69,182.0,181.96,11.09629976]
[1752845897958,29.88,181.99,181.97,11.09629976]
[1752845898158,0.69,182.0,181.91,19.75028365]
[1752845898384,0.69,182.0,181.97,11.09629976]
[1752845898762,55.88,182.01,181.97,11.09629976]
[1752845898966,29.88,182.0,181.98,11.09629976]
[1752845899168,30.57,182.0,181.97,11.09629976]
[1752845899475,5.4937624,182.03,181.94,5.49631746]
[1752845899476,0.69,182.03,181.94,5.49631746]
[1752845899674,29.88,182.02,182.01,11.09629976]
[1752845899876,29.88,182.02,182.0,11.09629976]
[1752845900060,29.88,182.02,181.97,11.09629976]
[1752845900061,0.69,182.01,181.97,11.09629976]
[1752845900256,0.69,182.0,181.98,11.09629976]
[1752845900692,29.88,182.02,181.94,5.49631746]
[1752845901001,0.69,181.99,181.97,11.09629976]
[1752845901468,0.69,182.03,181.98,11.09629976]
[1752845901669,29.88,182.02,182.0,11.09629976]
[1752845901870,56.57,182.03,182.0,11.09629976]
[1752845902071,29.88,182.03,182.01,11.09629976]
[1752845902281,26.0,182.04,182.01,11.09629976]
[1752845902457,0.06,182.05,182.03,11.09629976]
[1752845902662,29.88,182.04,182.03,11.09629976]
[1752845902992,29.88,182.04,182.02,11.09629976]
[1752845903564,29.88,182.04,182.03,11.09629976]
[1752845904292,29.88,182.04,181.98,5.49510935]
[1752845904293,30.58,182.04,181.98,5.49510935]
[1752845904587,11.79629976,182.03,181.98,11.09629976]
[1752845904776,0.7,182.02,181.98,11.09629976]
[1752845904963,0.7,182.01,181.98,11.09629976]
[1752845905176,0.7,182.01,181.93,15.34211586]
[1752845905177,30.04,182.0,181.93,15.34211586]
[1752845905376,0.7,181.99,181.94,5.49631746]
[1752845905578,0.7,181.99,181.96,11.09629976]
[1752845905880,0.7,181.98,181.96,11.09629976]
[1752845906281,0.7,181.97,181.95,11.09629976]
[1752845906481,30.04,182.0,181.95,11.09629976]
[1752845906683,30.04,182.0,181.93,5.49656753]
[1752845906684,0.7,181.99,181.96,11.09629976]
[1752845906883,0.7,181.98,181.96,11.09629976]
[1752845907889,0.7,181.98,181.95,11.09629976]
[1752845908302,0.7,181.97,181.95,11.09629976]
[1752845908810,30.7,181.96,181.92,5.49689411]
[1752845908997,0.7,181.95,181.89,1.5382]
[1752845909204,0.7,181.95,181.91,11.09629976]
[1752845909513,0.7,181.94,181.9,11.09629976]
[1752845909685,0.7,181.93,181.88,5.52809443]
[1752845910005,30.68,181.92,181.88,0.03]
[1752845910196,30.68,181.92,181.88,11.12629976]
[1752845910389,11.79629976,181.91,181.88,0.03]
[1752845910798,17.29382587,181.9,181.88,0.03]
[1752845911300,11.79629976,181.89,181.88,0.03]
[1752845911704,26.7,181.89,181.88,0.03]
[1752845911900,37.79629976,181.89,181.88,0.03]
[1752845912286,84.56098373,181.89,181.88,0.03]
[1752845912907,90.05881208,181.89,181.88,0.03]
[1752845913206,32.19782835,181.89,181.88,0.03]
[1752845913400,73.27412811,181.89,181.88,0.03]
[1752845913605,90.05881208,181.89,181.88,0.03]
[1752845914109,16.78468397,181.88,181.86,0.03]
[1752845914293,42.78468397,181.85,181.84,0.03]
[1752845914482,83.88098373,181.85,181.84,0.03]
[1752845914689,67.79629976,181.85,181.84,0.03]
[1752845915012,90.08002139,181.85,181.84,0.03]
[1752845915201,26.0,181.81,181.74,11.12629976]
[1752845915509,11.09629976,181.78,181.74,0.03]
[1752845915714,29.98,181.77,181.74,0.03]
[1752845915891,11.09629976,181.76,181.74,0.03]
[1752845916093,0.7,181.76,181.74,0.03]
[1752845916897,26.7,181.8,181.75,11.09629976]